fUST/lending_fUST_20250717
["ID","MTS","AMOUNT","RATE_DAILY","PERIOD"]
[372608248,1752702643617,-691.2150118,0.00021421,2]
[372608250,1752702643627,-851.93703583,0.00021421,2]
[372608252,1752702643637,-849.79101408,0.00021421,2]
[372608254,1752702643647,-1000.0,0.00021421,2]
[372608256,1752702643657,-500.0,0.00021421,2]
[372608259,1752702643667,-1000.0,0.00021421,2]
[372608261,1752702643677,-1000.0,0.00021421,2]
[372608263,1752702643687,-598.71,0.00021482,2]
[372608265,1752702643697,-487.47,0.00021482,2]
[372608267,1752702643706,-460.0,0.00021482,2]
[372608269,1752702643716,-460.0,0.00021482,2]
[372608271,1752702643726,-460.0,0.00021482,2]
[372608274,1752702643737,-460.0,0.00021482,2]
[372608276,1752702643747,-460.0,0.00021482,2]
[372608279,1752702643757,-2086.21,0.00021482,2]
[372608282,1752702643767,-3465.71,0.00021482,2]
[372608285,1752702643776,-620.94,0.00021482,2]
[372608287,1752702643786,-367.08452644,0.00021482,2]
[372608290,1752702643796,-762.84,0.00021482,2]
[372608293,1752702643805,-966.41,0.00021482,2]
[372608296,1752702643815,-499.51,0.00021482,2]
[372608300,1752702643824,-460.0,0.00021482,2]
[372608303,1752702643835,-1906.16,0.00021482,2]
[372608306,1752702643844,-863.17,0.00021482,2]
[372608309,1752702643855,-298.02569367,0.00021499,2]
[372608311,1752702643865,-384.83249939,0.00021499,2]
[372608313,1752702643875,-460.0,0.00021499,2]
[372608315,1752702643885,-460.0,0.00021499,2]
[372608317,1752702643895,-460.0,0.00021499,2]
[372608319,1752702643904,-460.0,0.00021499,2]
[372608321,1752702643914,-460.0,0.00021499,2]
[372608323,1752702643924,-460.0,0.00021499,2]
[372608326,1752702643934,-460.0,0.00021499,2]
[372608328,1752702643946,-460.0,0.00021499,2]
[372608330,1752702643956,-460.0,0.00021499,2]
[372608332,1752702643966,-465.95814815,0.00021499,2]
[372608334,1752702643976,-460.0,0.00021499,2]
[372608336,1752702643986,-460.0,0.00021499,2]
[372608338,1752702643996,-460.0,0.00021499,2]
[372608340,1752702644005,-460.0,0.00021499,2]
[372608342,1752702644014,-460.0,0.00021499,2]
[372608344,1752702644024,-460.0,0.00021499,2]
[372608346,1752702644035,-460.0,0.00021499,2]
[372608348,1752702644044,-462.63517024,0.00021499,2]
[372608350,1752702644055,-460.0,0.00021499,2]
[372608352,1752702644065,-460.0,0.00021499,2]
[372608354,1752702644075,-460.0,0.00021499,2]
[372608356,1752702644086,-460.0,0.00021499,2]
[372608358,1752702644096,-460.0,0.00021499,2]
[372608360,1752702644106,-460.0,0.00021499,2]
[372608362,1752702644116,-460.0,0.00021499,2]
[372608364,1752702644126,-460.0,0.00021499,2]
[372608366,1752702644136,-462.30843912,0.00021499,2]
[372608368,1752702644146,-461.56965351,0.00021499,2]
[372608370,1752702644158,-460.0,0.00021499,2]
[372608372,1752702644169,-460.0,0.00021499,2]
[372608374,1752702644179,-460.0,0.00021499,2]
[372608376,1752702644188,-460.0,0.00021499,2]
[372608378,1752702644198,-460.0,0.00021499,2]
[372608380,1752702644208,-460.0,0.00021499,2]
[372608382,1752702644218,-460.0,0.00021499,2]
[372608384,1752702644228,-460.0,0.00021499,2]
[372608386,1752702644239,-460.0,0.00021499,2]
[372608388,1752702644250,-460.0,0.00021499,2]
[372608390,1752702644260,-460.0,0.00021499,2]
[372608392,1752702644270,-460.0,0.00021499,2]
[372608394,1752702644280,-460.0,0.00021499,2]
[372608397,1752702644290,-460.0,0.00021499,2]
[372608399,1752702644300,-460.0,0.00021499,2]
[372608401,1752702644310,-460.0,0.00021499,2]
[372608403,1752702644320,-872.37,0.00021499,2]
[372608405,1752702644330,-460.0,0.00021499,2]
[372608407,1752702644340,-1627.41,0.00021499,2]
[372608409,1752702644350,-468.69,0.00021499,2]
[372608411,1752702644360,-460.0,0.00021499,2]
[372608413,1752702644369,-460.0,0.00021499,2]
[372608415,1752702644379,-460.0,0.00021499,2]
[372608417,1752702644388,-460.0,0.00021499,2]
[372608419,1752702644398,-460.0,0.00021499,2]
[372608421,1752702644411,-460.0,0.00021499,2]
[372608423,1752702644421,-460.0,0.00021499,2]
[372608425,1752702644430,-3084.36,0.00021499,2]
[372608427,1752702644440,-1914.87,0.00021499,2]
[372608429,1752702644450,-460.0,0.00021499,2]
[372608431,1752702644461,-612.12,0.00021499,2]
[372608433,1752702644470,-460.0,0.00021499,2]
[372608435,1752702644480,-460.0,0.00021499,2]
[372608437,1752702644489,-460.0,0.00021499,2]
[372608439,1752702644499,-460.0,0.00021499,2]
[372608441,1752702644508,-460.0,0.00021499,2]
[372608443,1752702644518,-460.0,0.00021499,2]
[372608445,1752702644527,-460.0,0.00021499,2]
[372608447,1752702644537,-460.0,0.00021499,2]
[372608449,1752702644547,-460.0,0.00021499,2]
[372608451,1752702644557,-460.0,0.00021499,2]
[372608453,1752702644565,-460.0,0.00021499,2]
[372608455,1752702644575,-460.0,0.00021499,2]
[372608457,1752702644584,-460.0,0.00021499,2]
[372608459,1752702644593,-1143.75,0.00021499,2]
[372608461,1752702644603,-460.0,0.00021499,2]
[372608463,1752702644612,-1386.02,0.00021499,2]
[372608465,1752702644622,-460.0,0.00021499,2]
[372608467,1752702644632,-460.0,0.00021499,2]
[372608469,1752702644642,-460.0,0.00021499,2]
[372608471,1752702644651,-1287.02,0.00021499,2]
[372608473,1752702644661,-460.0,0.00021499,2]
[372608475,1752702644670,-460.0,0.00021499,2]
[372608477,1752702644679,-460.0,0.00021499,2]
[372608479,1752702644688,-460.0,0.00021499,2]
[372608481,1752702644698,-717.47,0.00021499,2]
[372608483,1752702644708,-460.0,0.00021499,2]
[372608485,1752702644718,-460.0,0.00021499,2]
[372608487,1752702644727,-460.0,0.00021499,2]
[372608489,1752702644736,-460.0,0.00021499,2]
[372608490,1752702644745,-460.0,0.00021499,2]
[372608491,1752702644754,-460.0,0.00021499,2]
[372608492,1752702644763,-460.0,0.00021499,2]
[372608493,1752702644772,-460.0,0.00021499,2]
[372608494,1752702644782,-460.0,0.00021499,2]
[372608495,1752702644791,-460.0,0.00021499,2]
[372608496,1752702644800,-460.0,0.00021499,2]
[372608497,1752702644810,-460.0,0.00021499,2]
[372608498,1752702644819,-460.0,0.00021499,2]
[372608499,1752702644828,-500.0,0.00021582,2]
[372608502,1752702644839,-151.0,0.000216,3]
[372608504,1752702644848,-487.47,0.00021756,2]
[372608506,1752702644858,-460.0,0.00021756,2]
[372608508,1752702644868,-460.0,0.00021756,2]
[372608510,1752702644878,-460.0,0.00021756,2]
[372608512,1752702644888,-460.0,0.00021756,2]
[372608514,1752702644898,-460.0,0.00021756,2]
[372608516,1752702644914,-2086.21,0.00021756,2]
[372608518,1752702644925,-3465.71,0.00021756,2]
[372608520,1752702644934,-620.94,0.00021756,2]
[372608522,1752702644944,-762.84,0.00021756,2]
[372608524,1752702644954,-966.41,0.00021756,2]
[372608526,1752702644964,-499.51,0.00021756,2]
[372608528,1752702644973,-460.0,0.00021756,2]
[372608530,1752702644983,-1906.16,0.00021756,2]
[372608532,1752702644992,-863.17,0.00021756,2]
[372608534,1752702645002,-460.0,0.00021773,2]
[372608536,1752702645012,-460.0,0.00021773,2]
[372608538,1752702645022,-460.0,0.00021773,2]
[372608540,1752702645031,-460.0,0.00021773,2]
[372608542,1752702645041,-460.0,0.00021773,2]
[372608544,1752702645051,-460.0,0.00021773,2]
[372608546,1752702645060,-460.0,0.00021773,2]
[372608548,1752702645070,-460.0,0.00021773,2]
[372608550,1752702645079,-460.0,0.00021773,2]
[372608552,1752702645089,-460.0,0.00021773,2]
[372608554,1752702645099,-460.0,0.00021773,2]
[372608556,1752702645109,-460.0,0.00021773,2]
[372608558,1752702645118,-460.0,0.00021773,2]
[372608561,1752702645128,-209.40232849,0.00021773,2]
[372608563,1752702645138,-460.0,0.00021773,2]
[372608565,1752702645148,-460.0,0.00021773,2]
[372608566,1752702645164,-460.0,0.00021773,2]
[372608569,1752702645175,-460.0,0.00021773,2]
[372608571,1752702645184,-460.0,0.00021773,2]
[372608573,1752702645194,-872.37,0.00021773,2]
[372608575,1752702645205,-1627.41,0.00021773,2]
[372608577,1752702645215,-468.69,0.00021773,2]
[372608579,1752702645225,-460.0,0.00021773,2]
[372608581,1752702645236,-460.0,0.00021773,2]
[372608583,1752702645246,-460.0,0.00021773,2]
[372608585,1752702645255,-460.0,0.00021773,2]
[372608587,1752702645265,-460.0,0.00021773,2]
[372608589,1752702645275,-460.0,0.00021773,2]
[372608591,1752702645284,-3084.36,0.00021773,2]
[372608593,1752702645294,-1914.87,0.00021773,2]
[372608595,1752702645303,-460.0,0.00021773,2]
[372608596,1752702645313,-612.12,0.00021773,2]
[372608599,1752702645323,-460.0,0.00021773,2]
[372608601,1752702645333,-460.0,0.00021773,2]
[372608603,1752702645342,-460.0,0.00021773,2]
[372608605,1752702645352,-460.0,0.00021773,2]
[372608607,1752702645361,-460.0,0.00021773,2]
[372608609,1752702645371,-460.0,0.00021773,2]
[372608611,1752702645380,-1143.75,0.00021773,2]
[372608612,1752702645390,-460.0,0.00021773,2]
[372608615,1752702645399,-1386.02,0.00021773,2]
[372608617,1752702645410,-460.0,0.00021773,2]
[372608619,1752702645420,-460.0,0.00021773,2]
[372608621,1752702645430,-1287.02,0.00021773,2]
[372608623,1752702645440,-460.0,0.00021773,2]
[372608625,1752702645450,-460.0,0.00021773,2]
[372608627,1752702645460,-537.12903457,0.00021773,2]
[372608629,1752702645470,-460.0,0.00021773,2]
[372608631,1752702645479,-717.47,0.00021773,2]
[372608633,1752702645489,-460.0,0.00021773,2]
[372608635,1752702645498,-460.0,0.00021773,2]
[372608637,1752702645508,-460.0,0.00021773,2]
[372608639,1752702645518,-460.0,0.00021773,2]
[372608641,1752702645527,-460.0,0.00021773,2]
[372608643,1752702645537,-460.0,0.00021773,2]
[372608645,1752702645547,-460.0,0.00021773,2]
[372608647,1752702645556,-460.0,0.00021773,2]
[372608649,1752702645566,-460.0,0.00021773,2]
[372608651,1752702645575,-460.0,0.00021773,2]
[372608653,1752702645584,-525.44090785,0.00021873,2]
[372608655,1752702645594,-500.0,0.00021873,2]
[372608657,1752702645603,-500.0,0.00021917,2]
[372608659,1752702645612,-500.0,0.00021917,2]
[372608661,1752702645622,-500.0,0.00021917,2]
[372608663,1752702645632,-500.0,0.00021917,2]
[372608665,1752702645641,-500.0,0.00021917,2]
[372608667,1752702645651,-500.0,0.00021917,2]
[372608669,1752702645661,-536.59,0.00021917,2]
[372608671,1752702645670,-200.0,0.00021918,2]
[372608673,1752702645680,-360.0,0.00021939,2]
[372608675,1752702645690,-250.0,0.00021941,2]
[372608677,1752702645700,-1500.0,0.00021968,2]
[372608679,1752702645710,-500.0,0.00021968,2]
[372608696,1752702645851,-1000.0,0.00021968,2]
[372608698,1752702645862,-24539.25,0.00022,2]
[372608700,1752702645872,-2343.33,0.00022,7]
[372608702,1752702645881,-165.0,0.00022,2]
[372608704,1752702645891,-487.47,0.0002203,2]
[372608706,1752702645900,-460.0,0.0002203,2]
[372608708,1752702645910,-460.0,0.0002203,2]
[372608710,1752702645920,-460.0,0.0002203,2]
[372608712,1752702645929,-460.0,0.0002203,2]
[372608714,1752702645939,-460.0,0.0002203,2]
[372608716,1752702645949,-2086.21,0.0002203,2]
[372608718,1752702645958,-3465.71,0.0002203,2]
[372608720,1752702645968,-620.94,0.0002203,2]
[372608722,1752702645978,-762.84,0.0002203,2]
[372608724,1752702645988,-966.41,0.0002203,2]
[372608727,1752702645998,-499.51,0.0002203,2]
[372608728,1752702646007,-460.0,0.0002203,2]
[372608731,1752702646017,-1906.16,0.0002203,2]
[372608733,1752702646027,-863.17,0.0002203,2]
[372608735,1752702646036,-460.0,0.00022047,2]
[372608737,1752702646046,-359.01659589,0.00022047,2]
[372608739,1752702646055,-460.0,0.00022047,2]
[372608741,1752702646064,-460.0,0.00022047,2]
[372608743,1752702646074,-460.0,0.00022047,2]
[372608745,1752702646084,-499.78525659,0.00022047,2]
[372608747,1752702646093,-460.0,0.00022047,2]
[372608748,1752702646103,-590.56197606,0.00022047,2]
[372608751,1752702646113,-460.0,0.00022047,2]
[372608753,1752702646122,-460.0,0.00022047,2]
[372608755,1752702646132,-460.0,0.00022047,2]
[372608757,1752702646141,-460.0,0.00022047,2]
[372608759,1752702646150,-872.37,0.00022047,2]
[372608761,1752702646163,-1627.41,0.00022047,2]
[372608763,1752702646172,-468.69,0.00022047,2]
[372608765,1752702646181,-460.0,0.00022047,2]
[372608767,1752702646190,-460.0,0.00022047,2]
[372608769,1752702646201,-460.0,0.00022047,2]
[372608771,1752702646210,-460.0,0.00022047,2]
[372608773,1752702646220,-460.0,0.00022047,2]
[372608775,1752702646230,-3084.36,0.00022047,2]
[372608777,1752702646239,-1914.87,0.00022047,2]
[372608779,1752702646249,-460.0,0.00022047,2]
[372608781,1752702646259,-612.12,0.00022047,2]
[372608783,1752702646269,-460.0,0.00022047,2]
[372608785,1752702646279,-460.0,0.00022047,2]
[372608787,1752702646289,-460.0,0.00022047,2]
[372608789,1752702646299,-460.0,0.00022047,2]
[372608791,1752702646308,-460.0,0.00022047,2]
[372608793,1752702646318,-1143.75,0.00022047,2]
[372608795,1752702646328,-460.0,0.00022047,2]
[372608797,1752702646338,-1386.02,0.00022047,2]
[372608799,1752702646347,-460.0,0.00022047,2]
[372608801,1752702646357,-460.0,0.00022047,2]
[372608803,1752702646367,-1287.02,0.00022047,2]
[372608805,1752702646376,-460.0,0.00022047,2]
[372608807,1752702646385,-159.31,0.00022047,2]
[372608809,1752702646395,-717.47,0.00022047,2]
[372608811,1752702646405,-460.0,0.00022047,2]
[372608813,1752702646414,-337.21,0.00022047,2]
[372608815,1752702646424,-496.73,0.00022047,2]
[372608817,1752702646433,-460.0,0.00022047,2]
[372608819,1752702646443,-460.0,0.00022047,2]
[372608821,1752702646453,-460.0,0.00022047,2]
[372608823,1752702646463,-460.0,0.00022047,2]
[372608825,1752702646472,-460.0,0.00022047,2]
[372608827,1752702646483,-460.0,0.00022047,2]
[372608829,1752702646493,-500.0,0.00022127,2]
[372608831,1752702646503,-933.17839926,0.00022257,2]
[372608833,1752702646512,-587.0,0.00022278,2]
[372608835,1752702646522,-487.47,0.00022304,2]
[372608837,1752702646532,-460.0,0.00022304,2]
[372608839,1752702646542,-460.0,0.00022304,2]
[372608841,1752702646551,-460.0,0.00022304,2]
[372608843,1752702646561,-460.0,0.00022304,2]
[372608845,1752702646570,-360.88479302,0.00022304,2]
[372608847,1752702646579,-2086.21,0.00022304,2]
[372608849,1752702646588,-3465.71,0.00022304,2]
[372608851,1752702646598,-620.94,0.00022304,2]
[372608853,1752702646608,-762.84,0.00022304,2]
[372608855,1752702646617,-966.41,0.00022304,2]
[372608857,1752702646626,-499.51,0.00022304,2]
[372608859,1752702646635,-465.19,0.00022304,2]
[372608861,1752702646645,-1906.16,0.00022304,2]
[372608863,1752702646654,-863.17,0.00022304,2]
[372608865,1752702646663,-460.0,0.00022321,2]
[372608868,1752702646673,-460.0,0.00022321,2]
[372608871,1752702646683,-334.42,0.00022321,2]
[372608874,1752702646692,-460.0,0.00022321,2]
[372608877,1752702646702,-210.83,0.00022321,2]
[372608880,1752702646712,-872.37,0.00022321,2]
[372608881,1752702646722,-1627.41,0.00022321,2]
[372608884,1752702646732,-468.69,0.00022321,2]
[372608885,1752702646741,-460.0,0.00022321,2]
[372608887,1752702646751,-460.0,0.00022321,2]
[372608889,1752702646760,-460.0,0.00022321,2]
[372608891,1752702646769,-460.0,0.00022321,2]
[372608893,1752702646779,-460.0,0.00022321,2]
[372608895,1752702646788,-3084.36,0.00022321,2]
[372608897,1752702646798,-1914.87,0.00022321,2]
[372608900,1752702646808,-460.0,0.00022321,2]
[372608901,1752702646817,-612.12,0.00022321,2]
[372608904,1752702646826,-460.0,0.00022321,2]
[372608906,1752702646835,-571.35,0.00022321,2]
[372608907,1752702646844,-460.0,0.00022321,2]
[372608910,1752702646853,-460.0,0.00022321,2]
[372608912,1752702646863,-460.0,0.00022321,2]
[372608913,1752702646873,-1143.75,0.00022321,2]
[372608916,1752702646882,-460.0,0.00022321,2]
[372608918,1752702646892,-1386.02,0.00022321,2]
[372608919,1752702646902,-460.0,0.00022321,2]
[372608921,1752702646911,-460.0,0.00022321,2]
[372608923,1752702646921,-1287.02,0.00022321,2]
[372608925,1752702646931,-460.0,0.00022321,2]
[372608927,1752702646940,-717.47,0.00022321,2]
[372608929,1752702646949,-460.0,0.00022321,2]
[372608931,1752702646959,-460.0,0.00022321,2]
[372608934,1752702646968,-460.0,0.00022321,2]
[372608936,1752702646978,-460.0,0.00022321,2]
[372608938,1752702646987,-460.0,0.00022321,2]
[372608940,1752702646998,-460.0,0.00022321,2]
[372608941,1752702647007,-40304.99637759,0.00022356,2]
[372608944,1752702647016,-151.0,0.00022402,2]
[372608946,1752702647026,-500.0,0.00022402,2]
[372608948,1752702647036,-151.0,0.00022402,2]
[372608950,1752702647046,-500.0,0.00022402,2]
[372608952,1752702647055,-500.0,0.00022402,2]
[372608954,1752702647064,-151.0,0.00022402,2]
[372608956,1752702647073,-612.74679689,0.00022402,2]
[372608958,1752702647083,-151.0,0.00022402,2]
[372608960,1752702647093,-151.0,0.00022402,2]
[372608962,1752702647102,-151.0,0.00022402,2]
[372608964,1752702647112,-3801.642,0.00022402,2]
[372608966,1752702647121,-151.0,0.00022402,2]
[372608968,1752702647131,-151.0,0.00022402,2]
[372608970,1752702647140,-151.0,0.00022402,2]
[372608972,1752702647150,-151.0,0.00022402,2]
[372608974,1752702647163,-151.0,0.00022402,2]
[372608976,1752702647173,-151.0,0.00022402,2]
[372608978,1752702647183,-151.0,0.00022402,2]
[372608980,1752702647192,-151.0,0.00022402,2]
[372608982,1752702647203,-151.0,0.00022402,2]
[372608984,1752702647212,-153.7637497,0.00022402,2]
[372608986,1752702647222,-151.0,0.00022402,2]
[372608988,1752702647233,-151.0,0.00022402,2]
[372608990,1752702647243,-166.46846412,0.00022402,2]
[372608992,1752702647253,-151.0,0.00022402,2]
[372608994,1752702647262,-207.4,0.00022402,2]
[372608996,1752702647272,-151.0,0.00022402,2]
[372608998,1752702647281,-151.0,0.00022402,2]
[372609000,1752702647291,-151.0,0.00022402,2]
[372609002,1752702647301,-151.0,0.00022402,2]
[372609004,1752702647310,-151.0,0.00022402,2]
[372609006,1752702647321,-151.0,0.00022402,2]
[372609008,1752702647330,-151.0,0.00022402,2]
[372609010,1752702647339,-151.0,0.00022402,2]
[372609012,1752702647349,-151.0,0.00022402,2]
[372609014,1752702647358,-151.0,0.00022402,2]
[372609016,1752702647368,-151.0,0.00022402,2]
[372609018,1752702647377,-151.0,0.00022402,2]
[372609020,1752702647387,-151.0,0.00022402,2]
[372609022,1752702647396,-151.0,0.00022402,2]
[372609024,1752702647406,-175.8563729,0.00022402,2]
[372609026,1752702647417,-151.0,0.00022402,2]
[372609028,1752702647426,-25000.0,0.00022402,2]
[372609030,1752702647435,-21694.64805828,0.00022402,2]
[372609033,1752702647445,-158.03292145,0.00022411,4]
[372609036,1752702647454,-159.13686405,0.00022411,4]
[372609038,1752702647463,-1003.27154105,0.00022421,2]
[372609040,1752702647472,-460.0,0.00022487,2]
[372609042,1752702647482,-500.0,0.00022516,2]
[372609044,1752702647491,-1618.86135247,0.00022569,2]
[372609046,1752702647500,-487.47,0.00022578,2]
[372609048,1752702647510,-460.0,0.00022578,2]
[372609050,1752702647519,-460.0,0.00022578,2]
[372609052,1752702647528,-460.0,0.00022578,2]
[372609054,1752702647537,-460.0,0.00022578,2]
[372609056,1752702647547,-2086.21,0.00022578,2]
[372609058,1752702647556,-2207.66851607,0.00022578,2]
[372609060,1752702647565,-3465.71,0.00022578,2]
[372609062,1752702647575,-620.94,0.00022578,2]
[372609064,1752702647584,-762.84,0.00022578,2]
[372609066,1752702647594,-966.41,0.00022578,2]
[372609068,1752702647603,-499.51,0.00022578,2]
[372609070,1752702647612,-1906.16,0.00022578,2]
[372609072,1752702647622,-863.17,0.00022578,2]
[372609074,1752702647634,-460.0,0.00022595,2]
[372609076,1752702647644,-521.87,0.00022595,2]
[372609078,1752702647653,-460.0,0.00022595,2]
[372609080,1752702647663,-872.37,0.00022595,2]
[372609082,1752702647672,-1627.41,0.00022595,2]
[372609084,1752702647681,-468.69,0.00022595,2]
[372609086,1752702647690,-460.0,0.00022595,2]
[372609088,1752702647700,-460.0,0.00022595,2]
[372609090,1752702647709,-460.0,0.00022595,2]
[372609092,1752702647720,-460.0,0.00022595,2]
[372609094,1752702647730,-460.0,0.00022595,2]
[372609096,1752702647739,-3084.36,0.00022595,2]
[372609098,1752702647749,-1914.87,0.00022595,2]
[372609100,1752702647758,-460.0,0.00022595,2]
[372609102,1752702647768,-612.12,0.00022595,2]
[372609104,1752702647777,-460.0,0.00022595,2]
[372609106,1752702647787,-460.0,0.00022595,2]
[372609108,1752702647797,-460.0,0.00022595,2]
[372609110,1752702647806,-192.12,0.00022595,2]
[372609112,1752702647815,-1143.75,0.00022595,2]
[372609114,1752702647824,-381.96,0.00022595,2]
[372609116,1752702647834,-1386.02,0.00022595,2]
[372609118,1752702647843,-460.0,0.00022595,2]
[372609120,1752702647853,-460.0,0.00022595,2]
[372609122,1752702647863,-1287.02,0.00022595,2]
[372609124,1752702647873,-460.0,0.00022595,2]
[372609126,1752702647883,-717.47,0.00022595,2]
[372609128,1752702647892,-460.0,0.00022595,2]
[372609130,1752702647902,-460.0,0.00022595,2]
[372609132,1752702647912,-460.0,0.00022595,2]
[372609134,1752702647923,-460.0,0.00022595,2]
[372609137,1752702647933,-460.0,0.00022595,2]
[372609139,1752702647942,-460.0,0.00022595,2]
[372609141,1752702647951,-12605.49131908,0.000226,7]
[372609142,1752702647960,-160.0,0.000226,7]
[372609145,1752702647970,-331.4233043,0.00022602,2]
[372609147,1752702647979,-800.0,0.0002266,2]
[372609148,1752702647989,-800.0,0.00022662,2]
[372609150,1752702647999,-500.0,0.00022678,2]
[372609153,1752702648009,-151.0,0.000227,8]
[372609155,1752702648019,-800.0,0.00022744,2]
[372609157,1752702648028,-487.47,0.00022852,2]
[372609159,1752702648038,-460.0,0.00022852,2]
[372609161,1752702648047,-460.0,0.00022852,2]
[372609163,1752702648056,-460.0,0.00022852,2]
[372609165,1752702648065,-460.0,0.00022852,2]
[372609166,1752702648074,-2086.21,0.00022852,2]
[372609168,1752702648084,-3465.71,0.00022852,2]
[372609171,1752702648094,-620.94,0.00022852,2]
[372609173,1752702648103,-762.84,0.00022852,2]
[372609175,1752702648113,-966.41,0.00022852,2]
[372609177,1752702648123,-499.51,0.00022852,2]
[372609179,1752702648132,-1906.16,0.00022852,2]
[372609181,1752702648141,-863.17,0.00022852,2]
[372609183,1752702648151,-460.0,0.00022869,2]
[372609185,1752702648164,-460.0,0.00022869,2]
[372609187,1752702648174,-872.37,0.00022869,2]
[372609188,1752702648184,-1627.41,0.00022869,2]
[372609191,1752702648195,-468.69,0.00022869,2]
[372609192,1752702648205,-460.0,0.00022869,2]
[372609195,1752702648215,-460.0,0.00022869,2]
[372609197,1752702648224,-460.0,0.00022869,2]
[372609199,1752702648235,-460.0,0.00022869,2]
[372609201,1752702648244,-3084.36,0.00022869,2]
[372609203,1752702648253,-460.0,0.00022869,2]
[372609205,1752702648263,-1914.87,0.00022869,2]
[372609206,1752702648272,-460.0,0.00022869,2]
[372609208,1752702648281,-612.12,0.00022869,2]
[372609210,1752702648291,-460.0,0.00022869,2]
[372609213,1752702648300,-172.87,0.00022869,2]
[372609214,1752702648310,-460.0,0.00022869,2]
[372609217,1752702648320,-1143.75,0.00022869,2]
[372609218,1752702648330,-1386.02,0.00022869,2]
[372609221,1752702648339,-460.0,0.00022869,2]
[372609223,1752702648349,-460.0,0.00022869,2]
[372609224,1752702648359,-1287.02,0.00022869,2]
[372609227,1752702648368,-460.0,0.00022869,2]
[372609229,1752702648378,-717.47,0.00022869,2]
[372609231,1752702648387,-460.0,0.00022869,2]
[372609232,1752702648396,-460.0,0.00022869,2]
[372609234,1752702648406,-460.0,0.00022869,2]
[372609236,1752702648417,-460.0,0.00022869,2]
[372609238,1752702648426,-460.0,0.00022869,2]
[372609240,1752702648436,-460.0,0.00022869,2]
[372609243,1752702648446,-160.0,0.00023,3]
[372609244,1752702648455,-1543.67,0.00023,2]
[372609247,1752702648466,-160.0,0.00023,3]
[372609249,1752702648476,-4169.81197384,0.00023,10]
[372609251,1752702648486,-160.0,0.00023,3]
[372609253,1752702648497,-151.0,0.00023,9]
[372609255,1752702648506,-838.99048831,0.00023,3]
[372609257,1752702648516,-160.0,0.00023,3]
[372609259,1752702648525,-160.0,0.00023,3]
[372609261,1752702648534,-215.5496034,0.00023,3]
[372609263,1752702648544,-525.58295679,0.00023,3]
[372609265,1752702648553,-230.8109288,0.00023,3]
[372609267,1752702648563,-160.0,0.00023,3]
[372609269,1752702648572,-289.184877,0.00023003,2]
[372609271,1752702648581,-165.0,0.00023014,7]
[372609273,1752702648591,-151.0,0.00023027,7]
[372609275,1752702648599,-560.0,0.00023035,2]
[372609277,1752702648609,-487.47,0.00023126,2]